[Event "*** Titled Tuesday Blitz"]
[Site "Chess.com"]
[Date "2019.06.04"]
[Round "6"]
[White "dopolian"]
[Black "tan275"]
[Result "1-0"]
[WhiteElo "2262"]
[BlackElo "2181"]
[TimeControl "180+2"]
[EndTime "14:23:38 PDT"]
[Termination "dopolian won by resignation"]

1. c4 {[%clk 0:03:01.9]} 1... e6 {[%clk 0:02:59.6]} 2. g3 {[%clk 0:03:01.4]}
2... d5 {[%clk 0:02:59.6]} 3. cxd5 {[%clk 0:03:02.2]} 3... exd5 {[%clk
0:03:00.3]} 4. Nf3 {[%clk 0:03:03.5]} 4... Nf6 {[%clk 0:03:01]} 5. Bg2 {[%clk
0:03:04]} 5... Be7 {[%clk 0:03:00.5]} 6. O-O {[%clk 0:03:05.1]} 6... O-O {[%clk
0:03:01.3]} 7. d4 {[%clk 0:03:03.9]} 7... c6 {[%clk 0:03:01.3]} 8. Nc3 {[%clk
0:03:03]} 8... Bf5 {[%clk 0:03:00.1]} 9. Bf4 {[%clk 0:02:56.2]} 9... Ne4 {[%clk
0:02:57.6]} 10. Nxe4 {[%clk 0:02:44.2]} 10... Bxe4 {[%clk 0:02:58.2]} 11. Ne5
{[%clk 0:02:30.4]} 11... Bxg2 {[%clk 0:02:57.5]} 12. Kxg2 {[%clk 0:02:32.3]}
12... Nd7 {[%clk 0:02:58.1]} 13. Nxd7 {[%clk 0:02:30.2]} 13... Qxd7 {[%clk
0:02:59.1]} 14. Rb1 {[%clk 0:02:25.3]} 14... a5 {[%clk 0:02:50.3]} 15. Qd3
{[%clk 0:02:20.6]} 15... Rfe8 {[%clk 0:02:45.7]} 16. a3 {[%clk 0:02:06.9]} 16...
a4 {[%clk 0:02:32.8]} 17. h4 {[%clk 0:02:04.8]} 17... h6 {[%clk 0:02:32.6]} 18.
Rbd1 {[%clk 0:01:57.6]} 18... Bd6 {[%clk 0:02:32.4]} 19. Bd2 {[%clk 0:01:47.6]}
19... Re4 {[%clk 0:02:26.5]} 20. f3 {[%clk 0:01:43.5]} 20... Re6 {[%clk
0:02:20.8]} 21. e4 {[%clk 0:01:35.6]} 21... dxe4 {[%clk 0:02:00.8]} 22. fxe4
{[%clk 0:01:37.5]} 22... Rg6 {[%clk 0:01:57.7]} 23. Bf4 {[%clk 0:01:37.6]} 23...
Bxf4 {[%clk 0:01:51.2]} 24. Rxf4 {[%clk 0:01:39.5]} 24... Rd8 {[%clk 0:01:45.9]}
25. d5 {[%clk 0:01:18.3]} 25... cxd5 {[%clk 0:01:37.6]} 26. exd5 {[%clk
0:01:16.5]} 26... Rd6 {[%clk 0:01:31.8]} 27. Rd4 {[%clk 0:01:14.1]} 27... Re8
{[%clk 0:01:29]} 28. Qf3 {[%clk 0:01:08.5]} 28... Re5 {[%clk 0:01:26.1]} 29.
R1d2 {[%clk 0:00:56.7]} 29... Qb5 {[%clk 0:01:07.7]} 30. Qd3 {[%clk 0:00:39]}
30... Qxd3 {[%clk 0:01:01.5]} 31. R4xd3 {[%clk 0:00:40.9]} 31... Kf8 {[%clk
0:01:02.1]} 32. Rd4 {[%clk 0:00:41.1]} 32... Ke7 {[%clk 0:01:01.9]} 33. Rxa4
{[%clk 0:00:40.5]} 33... Rexd5 {[%clk 0:01:01.4]} 34. Rxd5 {[%clk 0:00:36.4]}
34... Rxd5 {[%clk 0:01:02.6]} 35. Rb4 {[%clk 0:00:36.5]} 35... b5 {[%clk
0:00:59.7]} 36. Kf3 {[%clk 0:00:37.6]} 36... Kd6 {[%clk 0:00:59.9]} 37. Ke4
{[%clk 0:00:36.6]} 37... f5+ {[%clk 0:00:57.2]} 38. Kf4 {[%clk 0:00:37.5]} 38...
Kc5 {[%clk 0:00:57.8]} 39. Rb3 {[%clk 0:00:34.3]} 39... g6 {[%clk 0:00:56.4]}
40. Rc3+ {[%clk 0:00:34.5]} 40... Kd6 {[%clk 0:00:55.5]} 41. Ke3 {[%clk
0:00:27.6]} 41... Re5+ {[%clk 0:00:52.3]} 42. Kd2 {[%clk 0:00:26.1]} 42... g5
{[%clk 0:00:51.2]} 43. Rd3+ {[%clk 0:00:24.1]} 43... Rd5 {[%clk 0:00:48.5]} 44.
h5 {[%clk 0:00:22.4]} 44... Rxd3+ {[%clk 0:00:45.3]} 45. Kxd3 {[%clk 0:00:23.5]}
45... Kd5 {[%clk 0:00:46.3]} 46. b3 {[%clk 0:00:23.8]} 46... Kc5 {[%clk
0:00:32.8]} 47. Kc3 {[%clk 0:00:16.8]} 47... Kd5 {[%clk 0:00:23.5]} 48. a4
{[%clk 0:00:14.8]} 48... bxa4 {[%clk 0:00:23.3]} 49. bxa4 {[%clk 0:00:16.7]}
49... Kc5 {[%clk 0:00:22]} 50. Kd3 {[%clk 0:00:16.3]} 50... Kb4 {[%clk
0:00:21.5]} 51. Kd4 {[%clk 0:00:17.4]} 51... Kxa4 {[%clk 0:00:20.8]} 52. Ke5
{[%clk 0:00:18.7]} 52... f4 {[%clk 0:00:21.7]} 53. gxf4 {[%clk 0:00:20.3]} 53...
g4 {[%clk 0:00:21.6]} 54. Ke4 {[%clk 0:00:19.5]} 54... Kb5 {[%clk 0:00:21.7]}
55. f5 {[%clk 0:00:18.6]} 55... Kc5 {[%clk 0:00:21.6]} 56. Ke5 {[%clk
0:00:14.9]} 56... g3 {[%clk 0:00:19.3]} 57. f6 {[%clk 0:00:15.9]} 57... g2
{[%clk 0:00:19.7]} 58. f7 {[%clk 0:00:17.3]} 58... g1=Q {[%clk 0:00:20.8]} 59.
f8=Q+ {[%clk 0:00:18.6]} 59... Kc4 {[%clk 0:00:20.2]} 60. Qxh6 {[%clk
0:00:18.4]} 60... Qc5+ {[%clk 0:00:19.8]} 61. Kf6 {[%clk 0:00:18.6]} 61... Qd6+
{[%clk 0:00:20.1]} 62. Kg7 {[%clk 0:00:17.6]} 62... Qe7+ {[%clk 0:00:20.4]} 63.
Kh8 {[%clk 0:00:18.1]} 63... Qd8+ {[%clk 0:00:20.6]} 64. Kh7 {[%clk 0:00:19.1]}
64... Qd3+ {[%clk 0:00:19.1]} 65. Qg6 {[%clk 0:00:20.3]} 65... Qd7+ {[%clk
0:00:19.3]} 66. Qg7 {[%clk 0:00:17.5]} 66... Qf5+ {[%clk 0:00:20.2]} 67. Qg6
{[%clk 0:00:15.7]} 67... Qd7+ {[%clk 0:00:19.3]} 68. Kh8 {[%clk 0:00:14.6]}
68... Qd4+ {[%clk 0:00:15.5]} 69. Qg7 {[%clk 0:00:15.6]} 69... Qh4 {[%clk
0:00:11.7]} 70. h6 {[%clk 0:00:14.4]} 70... Kb4 {[%clk 0:00:12.3]} 71. Kg8
{[%clk 0:00:12.1]} 71... Qc4+ {[%clk 0:00:12.6]} 72. Qf7 {[%clk 0:00:12.2]}
72... Qg4+ {[%clk 0:00:11.9]} 73. Kf8 {[%clk 0:00:09.9]} 73... Qc8+ {[%clk
0:00:11.4]} 74. Ke7 {[%clk 0:00:07.4]} 74... Qc5+ {[%clk 0:00:11.9]} 75. Kf6
{[%clk 0:00:08]} 75... Qf2+ {[%clk 0:00:12.4]} 76. Kg7 {[%clk 0:00:08.4]} 76...
Qd4+ {[%clk 0:00:12.4]} 77. Qf6 {[%clk 0:00:09]} 77... Qg4+ {[%clk 0:00:13.2]}
78. Kf7 {[%clk 0:00:06.5]} 78... Qc4+ {[%clk 0:00:13.5]} 79. Qe6 {[%clk
0:00:06.1]} 79... Qf4+ {[%clk 0:00:14.2]} 80. Ke8 {[%clk 0:00:05.3]} 80... Qb8+
{[%clk 0:00:13.4]} 81. Kf7 {[%clk 0:00:05.6]} 81... Qf4+ {[%clk 0:00:14.1]} 82.
Kg7 {[%clk 0:00:05.9]} 82... Qg3+ {[%clk 0:00:13.9]} 83. Kf6 {[%clk 0:00:05.1]}
83... Qf4+ {[%clk 0:00:12.3]} 84. Ke7 {[%clk 0:00:06.7]} 84... Qc7+ {[%clk
0:00:12.6]} 85. Kf8 {[%clk 0:00:06.1]} 85... Qf4+ {[%clk 0:00:12.9]} 86. Ke8
{[%clk 0:00:05]} 86... Qb8+ {[%clk 0:00:13.1]} 87. Kd7 {[%clk 0:00:06]} 87...
Qa7+ {[%clk 0:00:12.7]} 88. Kd6 {[%clk 0:00:06.9]} 88... Qc5+ {[%clk 0:00:13.2]}
89. Kd7 {[%clk 0:00:08.5]} 89... Qa7+ {[%clk 0:00:13.8]} 90. Kd8 {[%clk
0:00:08.2]} 90... Qb8+ {[%clk 0:00:14.4]} 91. Ke7 {[%clk 0:00:08.3]} 91... Qa7+
{[%clk 0:00:14.5]} 92. Kf8 {[%clk 0:00:07.8]} 92... Qf2+ {[%clk 0:00:14.8]} 93.
Qf7 {[%clk 0:00:08.8]} 93... Qh4 {[%clk 0:00:11.3]} 94. Qe7+ {[%clk 0:00:06.8]}
94... Qxe7+ {[%clk 0:00:11.8]} 95. Kxe7 {[%clk 0:00:08.7]} 95... Kb5 {[%clk
0:00:12.9]} 96. h7 {[%clk 0:00:10]} 1-0

[Event "*** Titled Tuesday Blitz"]
[Site "Chess.com"]
[Date "2019.06.04"]
[Round "7"]
[White "fm_magua"]
[Black "Kawhi_Leonard2"]
[Result "0-1"]
[WhiteElo "2485"]
[BlackElo "2302"]
[TimeControl "180+2"]
[EndTime "14:28:42 PDT"]
[Termination "Kawhi_Leonard2 won by checkmate"]

1. e4 {[%clk 0:03:01.9]} 1... c5 {[%clk 0:03:00.3]} 2. Nf3 {[%clk 0:03:02.4]}
2... d6 {[%clk 0:03:01.6]} 3. d4 {[%clk 0:03:03.9]} 3... cxd4 {[%clk 0:03:02.9]}
4. Nxd4 {[%clk 0:03:05.8]} 4... Nf6 {[%clk 0:03:03.9]} 5. Nc3 {[%clk 0:03:07.3]}
5... g6 {[%clk 0:03:05.5]} 6. Be3 {[%clk 0:03:07.1]} 6... Bg7 {[%clk 0:03:06.8]}
7. f3 {[%clk 0:03:08.8]} 7... Nc6 {[%clk 0:03:08]} 8. Qd2 {[%clk 0:03:10.2]}
8... O-O {[%clk 0:03:09.3]} 9. g4 {[%clk 0:03:11.8]} 9... Be6 {[%clk 0:03:09.4]}
10. O-O-O {[%clk 0:03:12.3]} 10... Nxd4 {[%clk 0:03:08.9]} 11. Bxd4 {[%clk
0:03:14.2]} 11... Qa5 {[%clk 0:03:09.6]} 12. a3 {[%clk 0:03:15.6]} 12... Rfc8
{[%clk 0:03:10.7]} 13. h4 {[%clk 0:03:17]} 13... Rab8 {[%clk 0:03:11.8]} 14. h5
{[%clk 0:03:18.5]} 14... b5 {[%clk 0:03:11.6]} 15. hxg6 {[%clk 0:03:19.7]} 15...
hxg6 {[%clk 0:03:12.7]} 16. Qg5 {[%clk 0:03:13.7]} 16... Qc7 {[%clk 0:02:57.5]}
17. e5 {[%clk 0:03:08.9]} 17... Ne4 {[%clk 0:02:52.8]} 18. fxe4 {[%clk
0:03:07.3]} 18... dxe5 {[%clk 0:02:53.8]} 19. Be3 {[%clk 0:03:03.2]} 19... b4
{[%clk 0:02:54.5]} 20. axb4 {[%clk 0:02:57.6]} 20... Rxb4 {[%clk 0:02:55.5]} 21.
Rd2 {[%clk 0:02:58.4]} 21... Rxb2 {[%clk 0:02:53.1]} 22. Kxb2 {[%clk 0:02:59.2]}
22... Qxc3+ {[%clk 0:02:53.8]} 23. Kb1 {[%clk 0:02:59.8]} 23... Rb8+ {[%clk
0:02:50.9]} 24. Kc1 {[%clk 0:03:01.3]} 24... Qa1# {[%clk 0:02:50.5]} 0-1

[Event "*** Titled Tuesday Blitz"]
[Site "Chess.com"]
[Date "2019.06.04"]
[Round "7"]
[White "kintoho"]
[Black "mikhaillushenkov"]
[Result "1/2-1/2"]
[WhiteElo "2552"]
[BlackElo "2716"]
[TimeControl "180+2"]
[EndTime "14:29:09 PDT"]
[Termination "Game drawn by repetition"]

1. e4 {[%clk 0:03:01.9]} 1... e6 {[%clk 0:02:58.3]} 2. d4 {[%clk 0:03:02.2]}
2... d5 {[%clk 0:03:00.2]} 3. exd5 {[%clk 0:03:03.3]} 3... exd5 {[%clk
0:03:01.5]} 4. c4 {[%clk 0:03:04.5]} 4... Nf6 {[%clk 0:03:01.7]} 5. Nc3 {[%clk
0:03:05.5]} 5... Bb4 {[%clk 0:02:53.4]} 6. Bd3 {[%clk 0:03:05.6]} 6... dxc4
{[%clk 0:02:53.3]} 7. Bxc4 {[%clk 0:03:06.1]} 7... O-O {[%clk 0:02:54]} 8. Nf3
{[%clk 0:03:07.2]} 8... Re8+ {[%clk 0:02:55]} 9. Be3 {[%clk 0:03:07.4]} 9... Be6
{[%clk 0:02:56.5]} 10. Bxe6 {[%clk 0:03:01.6]} 10... Rxe6 {[%clk 0:02:58.4]} 11.
O-O {[%clk 0:02:55.9]} 11... Nbd7 {[%clk 0:02:49.2]} 12. Qb3 {[%clk 0:02:56.2]}
12... Bxc3 {[%clk 0:02:49]} 13. bxc3 {[%clk 0:02:50.9]} 13... Rb6 {[%clk
0:02:44.1]} 14. Qa3 {[%clk 0:02:48.7]} 14... Ra6 {[%clk 0:02:41.3]} 15. Qb3
{[%clk 0:02:48.8]} 15... Rb6 {[%clk 0:02:41.4]} 16. Qc4 {[%clk 0:02:44.1]} 16...
Rc6 {[%clk 0:02:41.4]} 17. Qb3 {[%clk 0:02:42.3]} 17... Rb6 {[%clk 0:02:16.1]}
1/2-1/2

[Event "*** Titled Tuesday Blitz"]
[Site "Chess.com"]
[Date "2019.06.04"]
[Round "7"]
[White "colemman"]
[Black "MFBerna"]
[Result "1-0"]
[WhiteElo "2587"]
[BlackElo "2369"]
[TimeControl "180+2"]
[EndTime "14:30:45 PDT"]
[Termination "colemman won by resignation"]

1. d4 {[%clk 0:03:01.9]} 1... d5 {[%clk 0:03:01.1]} 2. Nf3 {[%clk 0:03:02.2]}
2... Nf6 {[%clk 0:03:01.9]} 3. Nbd2 {[%clk 0:03:03.5]} 3... c5 {[%clk
0:03:00.8]} 4. e3 {[%clk 0:03:03.7]} 4... Nc6 {[%clk 0:03:01.9]} 5. c3 {[%clk
0:03:05]} 5... e6 {[%clk 0:03:02.9]} 6. Bd3 {[%clk 0:03:04]} 6... Bd6 {[%clk
0:03:04.2]} 7. Qe2 {[%clk 0:03:05.1]} 7... O-O {[%clk 0:03:04.9]} 8. dxc5 {[%clk
0:03:06.6]} 8... Bxc5 {[%clk 0:03:05.9]} 9. O-O {[%clk 0:03:08]} 9... e5 {[%clk
0:03:06.4]} 10. e4 {[%clk 0:03:09.3]} 10... Bg4 {[%clk 0:03:07.1]} 11. exd5
{[%clk 0:03:07.6]} 11... Nxd5 {[%clk 0:03:00.1]} 12. Nb3 {[%clk 0:03:08.1]}
12... Bb6 {[%clk 0:02:56.2]} 13. Rd1 {[%clk 0:03:07.3]} 13... Qf6 {[%clk
0:02:44.5]} 14. Bxh7+ {[%clk 0:02:51.8]} 14... Kxh7 {[%clk 0:02:45.2]} 15. Rxd5
{[%clk 0:02:53.1]} 15... Rad8 {[%clk 0:02:32.7]} 16. Rxd8 {[%clk 0:02:38.1]}
16... Rxd8 {[%clk 0:02:34.6]} 17. Bg5 {[%clk 0:02:24.4]} 17... Bxf3 {[%clk
0:02:26]} 18. Qc2+ {[%clk 0:02:24.3]} 18... Qg6 {[%clk 0:02:26.2]} 19. Qxg6+
{[%clk 0:02:22.4]} 19... Kxg6 {[%clk 0:02:28.1]} 20. Bxd8 {[%clk 0:02:23.5]}
20... Bxd8 {[%clk 0:02:21]} 21. gxf3 {[%clk 0:02:23.5]} 21... Bb6 {[%clk
0:02:16.2]} 22. Rd1 {[%clk 0:02:21.6]} 22... Nd8 {[%clk 0:02:09.5]} 23. c4
{[%clk 0:01:56.6]} 23... Ne6 {[%clk 0:02:09.7]} 24. Rd7 {[%clk 0:01:57.8]} 24...
Nf4 {[%clk 0:02:08.4]} 25. c5 {[%clk 0:01:51.6]} 1-0

[Event "*** Titled Tuesday Blitz"]
[Site "Chess.com"]
[Date "2019.06.04"]
[Round "7"]
[White "bracuarta"]
[Black "Aragon"]
[Result "1-0"]
[WhiteElo "2113"]
[BlackElo "2063"]
[TimeControl "180+2"]
[EndTime "14:31:01 PDT"]
[Termination "bracuarta won by resignation"]

1. d4 {[%clk 0:03:01.9]} 1... d5 {[%clk 0:03:00.6]} 2. c4 {[%clk 0:03:02.9]}
2... e6 {[%clk 0:03:01.9]} 3. Nc3 {[%clk 0:03:03.7]} 3... c6 {[%clk 0:03:03.3]}
4. Nf3 {[%clk 0:03:04.3]} 4... dxc4 {[%clk 0:03:04]} 5. a4 {[%clk 0:03:04.5]}
5... Bb4 {[%clk 0:03:04.6]} 6. e4 {[%clk 0:03:05]} 6... b5 {[%clk 0:03:04.5]} 7.
Bd2 {[%clk 0:03:02.2]} 7... Nf6 {[%clk 0:03:03.4]} 8. e5 {[%clk 0:03:02.5]} 8...
Bxc3 {[%clk 0:03:04.4]} 9. bxc3 {[%clk 0:03:03]} 9... Nd5 {[%clk 0:03:05.8]} 10.
axb5 {[%clk 0:03:03.7]} 10... cxb5 {[%clk 0:03:06.4]} 11. Ng5 {[%clk 0:03:05.1]}
11... b4 {[%clk 0:02:23.1]} 12. Qh5 {[%clk 0:02:58.7]} 12... Qe7 {[%clk
0:02:12.2]} 13. Bxc4 {[%clk 0:02:54]} 13... bxc3 {[%clk 0:02:09.8]} 14. Bc1
{[%clk 0:02:54.6]} 14... Nc6 {[%clk 0:02:00.4]} 15. Ba3 {[%clk 0:02:48.8]} 15...
Qd7 {[%clk 0:01:55.3]} 16. Nxh7 {[%clk 0:02:32.6]} 16... Kd8 {[%clk 0:01:36.4]}
17. Qg5+ {[%clk 0:02:32.8]} 17... f6 {[%clk 0:01:33.1]} 18. exf6 {[%clk
0:02:29.6]} 18... gxf6 {[%clk 0:01:03.8]} 19. Nxf6 {[%clk 0:02:28.6]} 1-0

[Event "*** Titled Tuesday Blitz"]
[Site "Chess.com"]
[Date "2019.06.04"]
[Round "7"]
[White "HanSchut"]
[Black "Caisachess"]
[Result "1-0"]
[WhiteElo "2191"]
[BlackElo "2400"]
[TimeControl "180+2"]
[EndTime "14:31:29 PDT"]
[Termination "HanSchut won by resignation"]

1. e4 {[%clk 0:03:01.9]} 1... e5 {[%clk 0:03:00.8]} 2. Nf3 {[%clk 0:03:02.8]}
2... Nc6 {[%clk 0:03:02.3]} 3. Bc4 {[%clk 0:03:04.3]} 3... Bc5 {[%clk
0:03:02.5]} 4. b4 {[%clk 0:03:05.2]} 4... Bxb4 {[%clk 0:03:03.8]} 5. c3 {[%clk
0:03:06.7]} 5... Ba5 {[%clk 0:03:04.7]} 6. d4 {[%clk 0:03:07.6]} 6... exd4
{[%clk 0:03:06.2]} 7. O-O {[%clk 0:03:07.7]} 7... Nge7 {[%clk 0:03:06.5]} 8. Ng5
{[%clk 0:03:06.8]} 8... d5 {[%clk 0:03:01.4]} 9. exd5 {[%clk 0:03:07.8]} 9...
Ne5 {[%clk 0:02:56.6]} 10. Qxd4 {[%clk 0:03:08.8]} 10... Nxc4 {[%clk 0:02:55.4]}
11. Qxg7 {[%clk 0:03:09.2]} 11... Rf8 {[%clk 0:02:55.6]} 12. Nxh7 {[%clk
0:03:09.2]} 12... Ng6 {[%clk 0:02:54.1]} 13. Re1+ {[%clk 0:02:50.4]} 13... Kd7
{[%clk 0:02:43.7]} 14. Nf6+ {[%clk 0:02:38.4]} 14... Kd6 {[%clk 0:02:43.8]} 15.
Ne4+ {[%clk 0:02:35.6]} 15... Kd7 {[%clk 0:02:35.8]} 16. Bg5 {[%clk 0:02:22.1]}
16... Ne7 {[%clk 0:01:57]} 17. Nc5+ {[%clk 0:02:07.2]} 17... Kd6 {[%clk
0:01:54.5]} 18. Bxe7+ {[%clk 0:01:58.8]} 18... Qxe7 {[%clk 0:01:55.4]} 19. Rxe7
{[%clk 0:01:59.5]} 19... Kxe7 {[%clk 0:01:57.3]} 20. Qd4 {[%clk 0:01:51]} 20...
Nd6 {[%clk 0:01:57.5]} 21. Nd2 {[%clk 0:01:45]} 21... Bf5 {[%clk 0:01:53.4]} 22.
Re1+ {[%clk 0:01:39.2]} 22... Kd8 {[%clk 0:01:54.5]} 23. Qf6+ {[%clk 0:01:36.7]}
23... Kc8 {[%clk 0:01:55.5]} 24. Nc4 {[%clk 0:01:34]} 24... Nxc4 {[%clk
0:01:48.6]} 25. Qxf5+ {[%clk 0:01:33.5]} 1-0

[Event "*** Titled Tuesday Blitz"]
[Site "Chess.com"]
[Date "2019.06.04"]
[Round "7"]
[White "Niclox"]
[Black "ruvat"]
[Result "1-0"]
[WhiteElo "2636"]
[BlackElo "2368"]
[TimeControl "180+2"]
[EndTime "14:31:33 PDT"]
[Termination "Niclox won by checkmate"]

1. e4 {[%clk 0:02:40]} 1... d6 {[%clk 0:03:00.7]} 2. d4 {[%clk 0:02:35.7]} 2...
Nf6 {[%clk 0:03:01.6]} 3. Nc3 {[%clk 0:02:36.6]} 3... g6 {[%clk 0:03:02.6]} 4.
Bg5 {[%clk 0:02:28.8]} 4... Bg7 {[%clk 0:03:03.5]} 5. e5 {[%clk 0:02:12.3]} 5...
Nfd7 {[%clk 0:03:03.4]} 6. f4 {[%clk 0:02:10.5]} 6... O-O {[%clk 0:03:03]} 7. h4
{[%clk 0:02:02.8]} 7... Nb6 {[%clk 0:02:51.7]} 8. h5 {[%clk 0:02:02]} 8... f6
{[%clk 0:02:46.6]} 9. hxg6 {[%clk 0:01:56.6]} 9... fxg5 {[%clk 0:02:43.1]} 10.
Qh5 {[%clk 0:01:32.6]} 10... hxg6 {[%clk 0:02:30.3]} 11. Qh7+ {[%clk 0:01:27.8]}
11... Kf7 {[%clk 0:02:30.8]} 12. Nf3 {[%clk 0:01:29.3]} 12... Rg8 {[%clk
0:01:01.9]} 13. Nxg5+ {[%clk 0:01:24.8]} 13... Kf8 {[%clk 0:01:02.9]} 14. Qxg6
{[%clk 0:01:25.8]} 14... Qe8 {[%clk 0:01:02.8]} 15. Nh7# {[%clk 0:01:24.7]} 1-0

[Event "*** Titled Tuesday Blitz"]
[Site "Chess.com"]
[Date "2019.06.04"]
[Round "7"]
[White "ChainsOfFantasia"]
[Black "Oleg_Papayan"]
[Result "0-1"]
[WhiteElo "2491"]
[BlackElo "2558"]
[TimeControl "180+2"]
[EndTime "14:31:43 PDT"]
[Termination "Oleg_Papayan won by resignation"]

1. d4 {[%clk 0:03:01.9]} 1... Nf6 {[%clk 0:02:59.9]} 2. c4 {[%clk 0:03:02.5]}
2... e6 {[%clk 0:02:57.7]} 3. Nf3 {[%clk 0:03:03.4]} 3... Bb4+ {[%clk
0:02:57.9]} 4. Nbd2 {[%clk 0:03:02.5]} 4... c5 {[%clk 0:02:57.8]} 5. a3 {[%clk
0:03:02.7]} 5... Bxd2+ {[%clk 0:02:57.3]} 6. Qxd2 {[%clk 0:03:04.4]} 6... O-O
{[%clk 0:02:57.5]} 7. d5 {[%clk 0:03:04.3]} 7... exd5 {[%clk 0:02:58.5]} 8. cxd5
{[%clk 0:03:06.2]} 8... d6 {[%clk 0:02:58.8]} 9. e3 {[%clk 0:03:05.3]} 9... Bf5
{[%clk 0:02:58.3]} 10. Be2 {[%clk 0:03:03.7]} 10... Re8 {[%clk 0:02:55]} 11. O-O
{[%clk 0:03:04.2]} 11... Nbd7 {[%clk 0:02:56.1]} 12. Nh4 {[%clk 0:02:32]} 12...
Ne4 {[%clk 0:02:56.7]} 13. Qc2 {[%clk 0:02:12.7]} 13... Qxh4 {[%clk 0:02:52.2]}
14. f3 {[%clk 0:02:14.1]} 14... Ndf6 {[%clk 0:02:24.3]} 15. fxe4 {[%clk
0:02:13.3]} 15... Bxe4 {[%clk 0:02:25.9]} 16. Qa4 {[%clk 0:02:05.2]} 16... Qg5
{[%clk 0:02:20.6]} 17. Rf2 {[%clk 0:01:54.4]} 17... Bxd5 {[%clk 0:02:16.7]} 18.
e4 {[%clk 0:01:54.3]} 18... Qh4 {[%clk 0:02:17.6]} 19. Bb5 {[%clk 0:01:40.9]}
19... Ng4 {[%clk 0:02:00.2]} 20. Be3 {[%clk 0:01:01.6]} 20... Rxe4 {[%clk
0:01:55.9]} 21. Qd1 {[%clk 0:00:50.9]} 21... Qxh2+ {[%clk 0:01:55]} 22. Kf1
{[%clk 0:00:51.3]} 22... Nxe3+ {[%clk 0:01:56.9]} 0-1

[Event "*** Titled Tuesday Blitz"]
[Site "Chess.com"]
[Date "2019.06.04"]
[Round "7"]
[White "BillForster"]
[Black "mitrabhaa"]
[Result "0-1"]
[WhiteElo "1763"]
[BlackElo "2683"]
[TimeControl "180+2"]
[EndTime "14:31:45 PDT"]
[Termination "mitrabhaa won by resignation"]

1. d4 {[%clk 0:03:01.9]} 1... e6 {[%clk 0:03:00]} 2. c4 {[%clk 0:03:00.7]} 2...
Nf6 {[%clk 0:03:00.2]} 3. Nc3 {[%clk 0:03:00.9]} 3... Bb4 {[%clk 0:03:01]} 4. e3
{[%clk 0:02:57.5]} 4... O-O {[%clk 0:03:01.5]} 5. Ne2 {[%clk 0:02:57.8]} 5... d5
{[%clk 0:03:01.7]} 6. c5 {[%clk 0:02:55.7]} 6... b6 {[%clk 0:03:00.4]} 7. a3
{[%clk 0:02:54.8]} 7... Bxc3+ {[%clk 0:03:00.3]} 8. Nxc3 {[%clk 0:02:54.2]} 8...
bxc5 {[%clk 0:03:01]} 9. dxc5 {[%clk 0:02:54.1]} 9... e5 {[%clk 0:03:02.1]} 10.
Be2 {[%clk 0:02:44.2]} 10... c6 {[%clk 0:03:02.6]} 11. O-O {[%clk 0:02:44.1]}
11... a5 {[%clk 0:03:03]} 12. Na4 {[%clk 0:02:34.7]} 12... Bf5 {[%clk
0:02:59.7]} 13. Nb6 {[%clk 0:02:29.3]} 13... Ra7 {[%clk 0:02:57.4]} 14. Bd2
{[%clk 0:02:26.5]} 14... Nbd7 {[%clk 0:02:49.2]} 15. Nxd7 {[%clk 0:02:23.1]}
15... Qxd7 {[%clk 0:02:46]} 16. b4 {[%clk 0:02:23.6]} 16... a4 {[%clk
0:02:45.4]} 17. Rc1 {[%clk 0:02:05.9]} 17... Re8 {[%clk 0:02:44.8]} 18. b5
{[%clk 0:01:54.7]} 18... cxb5 {[%clk 0:02:42.6]} 19. c6 {[%clk 0:01:55]} 19...
Qc7 {[%clk 0:02:43.1]} 20. Bxb5 {[%clk 0:01:54.5]} 20... Ne4 {[%clk 0:02:42.5]}
21. Bb4 {[%clk 0:01:47.4]} 21... Be6 {[%clk 0:02:39.2]} 22. Bxa4 {[%clk
0:01:45]} 22... Nd6 {[%clk 0:02:39.2]} 23. Bb3 {[%clk 0:01:36]} 23... Nc4 {[%clk
0:02:36.7]} 24. Bc5 {[%clk 0:01:29.8]} 24... Ra5 {[%clk 0:02:31]} 25. Bxc4
{[%clk 0:01:28.6]} 25... Rxc5 {[%clk 0:02:30.3]} 26. Ba2 {[%clk 0:01:14.1]}
26... Rxc6 {[%clk 0:02:29.5]} 27. Bxd5 {[%clk 0:01:08.7]} 27... Rxc1 {[%clk
0:02:28]} 28. Qxc1 {[%clk 0:01:02.9]} 28... Qxc1 {[%clk 0:02:27.6]} 29. Rxc1
{[%clk 0:01:01.6]} 29... Bxd5 {[%clk 0:02:29]} 0-1

[Event "*** Titled Tuesday Blitz"]
[Site "Chess.com"]
[Date "2019.06.04"]
[Round "7"]
[White "Karacsonyi_Gellert"]
[Black "cool4chess"]
[Result "0-1"]
[WhiteElo "2526"]
[BlackElo "2366"]
[TimeControl "180+2"]
[EndTime "14:31:47 PDT"]
[Termination "cool4chess won by resignation"]

1. e4 {[%clk 0:03:01.9]} 1... e5 {[%clk 0:03:00.3]} 2. Nf3 {[%clk 0:03:01.9]}
2... Nc6 {[%clk 0:03:01.8]} 3. Bb5 {[%clk 0:03:02.9]} 3... a6 {[%clk 0:03:03.2]}
4. Bxc6 {[%clk 0:03:03.8]} 4... dxc6 {[%clk 0:03:03.9]} 5. O-O {[%clk
0:03:05.2]} 5... f6 {[%clk 0:03:02.6]} 6. d4 {[%clk 0:03:05.9]} 6... exd4 {[%clk
0:03:04.5]} 7. Nxd4 {[%clk 0:03:07.4]} 7... c5 {[%clk 0:03:05.1]} 8. Nb3 {[%clk
0:03:08.3]} 8... Qxd1 {[%clk 0:03:06.6]} 9. Rxd1 {[%clk 0:03:09.2]} 9... Bg4
{[%clk 0:03:08.2]} 10. f3 {[%clk 0:03:09.9]} 10... Bd7 {[%clk 0:03:09.8]} 11.
Bf4 {[%clk 0:03:11.4]} 11... O-O-O {[%clk 0:03:11.1]} 12. Nc3 {[%clk 0:03:10.7]}
12... b6 {[%clk 0:03:04.7]} 13. Nd5 {[%clk 0:03:08.5]} 13... Bd6 {[%clk
0:02:50.4]} 14. Bxd6 {[%clk 0:03:03.8]} 14... cxd6 {[%clk 0:02:51.4]} 15. Nxb6+
{[%clk 0:03:05.4]} 15... Kc7 {[%clk 0:02:51.1]} 16. Nd5+ {[%clk 0:03:03.2]}
16... Kb8 {[%clk 0:02:49]} 17. Rd2 {[%clk 0:02:52.6]} 17... Nh6 {[%clk
0:02:47.5]} 18. Rad1 {[%clk 0:02:52.2]} 18... Nf7 {[%clk 0:02:48.5]} 19. Na5
{[%clk 0:02:49.6]} 19... Ka7 {[%clk 0:02:37.6]} 20. Nc4 {[%clk 0:02:48.3]} 20...
Bb5 {[%clk 0:02:36.9]} 21. Nce3 {[%clk 0:02:45.7]} 21... Kb7 {[%clk 0:02:32.6]}
22. Nc3 {[%clk 0:02:44]} 22... Bd7 {[%clk 0:02:26.6]} 23. Nc4 {[%clk 0:02:40.4]}
23... Bc6 {[%clk 0:02:18.8]} 24. Nxd6+ {[%clk 0:02:36.5]} 24... Nxd6 {[%clk
0:02:18.4]} 25. Rxd6 {[%clk 0:02:37.5]} 25... Rxd6 {[%clk 0:02:19.2]} 26. Rxd6
{[%clk 0:02:39.4]} 26... Kc7 {[%clk 0:02:20.6]} 27. Rd2 {[%clk 0:02:39.6]} 27...
Rb8 {[%clk 0:02:21.2]} 28. b3 {[%clk 0:02:40.8]} 28... a5 {[%clk 0:02:13.1]} 29.
Kf2 {[%clk 0:02:38.3]} 29... a4 {[%clk 0:02:08.5]} 30. Nd5+ {[%clk 0:02:38.3]}
30... Bxd5 {[%clk 0:02:06.6]} 31. Rxd5 {[%clk 0:02:39.3]} 31... axb3 {[%clk
0:02:05.3]} 32. Ke3 {[%clk 0:02:39.9]} 32... b2 {[%clk 0:02:04.1]} 33. Rxc5+
{[%clk 0:01:50]} 33... Kd6 {[%clk 0:01:57.9]} 34. Rd5+ {[%clk 0:01:51.1]} 34...
Kc6 {[%clk 0:01:59.5]} 35. Rd1 {[%clk 0:01:51.2]} 35... b1=Q {[%clk 0:02:00.6]}
36. Rxb1 {[%clk 0:01:52.4]} 36... Rxb1 {[%clk 0:02:02]} 37. f4 {[%clk
0:01:48.3]} 37... Rb2 {[%clk 0:01:59.9]} 0-1